bitfinex/quotes_ETHUSD_20241024
["timestamp","ask_amount","ask_price","bid_price","bid_amount"]
[1729787931024,0.03924493,2521.9,2521.8,4.51533]
[1729787931228,3.96481,2522.2,2521.8,5.439272]
[1729787931448,3.96481,2522.2,2521.8,4.51533]
[1729787931449,0.03927453,2521.9,2521.8,4.51533]
[1729787931732,3.96481,2522.2,2521.8,4.51533]
[1729787931959,0.03924493,2521.9,2521.8,4.51533]
[1729787932263,0.03927453,2521.9,2521.8,4.51533]
[1729787932457,3.96481,2522.2,2521.8,4.51533]
[1729787932653,0.03927453,2521.9,2521.8,4.51533]
[1729787932824,3.96481,2522.2,2521.8,5.439272]
[1729787933040,0.03924493,2521.9,2521.8,4.51533]
[1729787933232,3.96481,2522.2,2521.8,4.51533]
[1729787933529,0.03938575,2521.9,2521.8,4.51533]
[1729787933731,3.96481,2522.2,2521.8,4.51533]
[1729787933939,0.03944495,2521.9,2521.8,4.51533]
[1729787934167,3.96481,2522.2,2521.8,5.439272]
[1729787934370,0.03944495,2521.9,2521.8,7.07029548]
[1729787934570,3.96481,2522.2,2521.8,6.14635348]
[1729787934728,0.03944495,2521.9,2521.8,6.14635348]
[1729787934935,3.96481,2522.2,2521.8,6.14635348]
[1729787935129,0.03944495,2521.9,2521.8,6.14635348]
[1729787935333,3.96481,2522.2,2521.8,6.14635348]
[1729787935570,0.03943117,2521.9,2521.8,6.14635348]
[1729787935873,3.96481,2522.2,2521.8,7.23339783]
[1729787936083,3.96481,2522.2,2521.8,6.14635348]
[1729787936375,3.96497,2522.1,2521.8,2.18102348]
[1729787936868,0.03822077,2522.0,2521.8,2.18102348]
[1729787939548,3.96495,2522.1,2521.8,2.18102348]
[1729787939749,0.03722417,2521.9,2521.8,2.18102348]
[1729787939952,3.96495,2522.1,2521.8,2.18102348]
[1729787940451,0.03731184,2522.0,2521.8,2.18102348]
[1729787942129,0.03731184,2522.0,2521.8,0.55]
[1729787942335,0.03731184,2522.0,2521.8,2.18102348]
[1729787943615,0.03731184,2522.0,2521.8,0.55]
[1729787943821,0.03731184,2522.0,2521.8,2.18102348]
[1729787947380,4.00245184,2522.0,2521.8,0.55]
[1729787947586,0.03731184,2522.0,2521.8,0.55]
[1729787948425,0.03731184,2522.0,2521.8,2.18102348]
[1729787949089,0.03731184,2522.0,2521.9,1.63102348]
[1729787949295,3.96488,2522.2,2521.8,6.14643348]
[1729787949524,4.00120219,2522.1,2521.8,2.18102348]
[1729787950136,3.96516,2522.0,2521.8,0.55]
[1729787950448,4.00120219,2522.1,2521.8,0.55]
[1729787950449,0.03725681,2521.9,2521.8,2.18102348]
[1729787950653,3.96497,2522.1,2521.8,2.18102348]
[1729787950851,0.03737408,2522.0,2521.8,2.18102348]
[1729787951035,0.03737408,2522.0,2521.9,1.63102348]
[1729787951211,0.03737408,2522.0,2521.8,2.18102348]
[1729787952339,3.96496,2522.1,2521.8,2.18102348]
[1729787952671,3.96496,2522.1,2521.8,0.55]
[1729787952875,0.03739138,2522.0,2521.8,0.55]
[1729787954070,4.00250138,2522.0,2521.8,0.55]
[1729787954479,0.03739138,2522.0,2521.8,0.55]
[1729787954771,0.03739138,2522.0,2521.8,6.14642348]
[1729787955072,3.96486,2522.2,2521.8,6.14642348]
[1729787955234,4.00236047,2522.1,2521.8,0.55]
[1729787955636,3.96514,2522.0,2521.7,2.38942348]
[1729787955880,0.03704592,2521.9,2521.7,1.63102348]
[1729787956181,0.03704592,2521.9,2521.6,4.63102348]
[1729787956182,4.80166592,2521.9,2521.6,4.63102348]
[1729787956869,4.00236592,2521.9,2521.6,4.63102348]
[1729787957104,4.00236592,2521.9,2521.7,1.63102348]
[1729787957323,0.03704592,2521.9,2521.8,1.63102348]
[1729787957602,3.96512,2522.0,2521.7,1.63102348]
[1729787957802,0.03704592,2521.9,2521.7,1.63102348]
[1729787960012,0.8128,2521.8,2521.6,3.0]
[1729787960196,0.8128,2521.8,2521.5,3.55]
[1729787960397,0.03681133,2521.7,2521.6,3.96569]
[1729787960603,0.03681133,2521.7,2521.5,7.51582]
[1729787960906,0.03672514,2521.6,2521.5,7.51582]
[1729787961071,3.96527,2521.9,2521.5,7.51582]
[1729787961272,4.00243975,2521.8,2521.5,3.55]
[1729787961583,0.03695975,2521.8,2521.5,7.51589]
[1729787961792,4.00238975,2521.8,2521.5,0.55]
[1729787962001,0.03695975,2521.8,2521.5,4.51589]
[1729787962516,0.03659691,2521.7,2521.5,0.55]
[1729787962720,3.96548,2521.8,2521.5,0.55]
[1729787962919,0.03659691,2521.7,2521.5,0.55]
[1729787963078,3.96548,2521.8,2521.5,0.55]
[1729787963284,0.03659691,2521.7,2521.5,0.55]
[1729787963511,3.96548,2521.8,2521.5,0.55]
[1729787963678,4.77793,2522.0,2521.5,4.51588]
[1729787963679,3.9653,2521.9,2521.5,4.51588]
[1729787963876,0.03671422,2521.8,2521.5,4.51588]
[1729787964115,0.03671422,2521.8,2521.5,6.14690348]
[1729787964414,0.03671422,2521.8,2521.5,4.51588]
[1729787965308,4.00214422,2521.8,2521.5,0.55]
[1729787965714,0.03671422,2521.8,2521.5,0.55]
[1729787965914,0.03671422,2521.8,2521.5,4.51586]
[1729787966712,4.00214422,2521.8,2521.5,0.55]
[1729787967255,0.03671422,2521.8,2521.5,0.55]
[1729787967454,0.03671422,2521.8,2521.5,4.51582]
[1729787967654,0.03682515,2521.7,2521.5,6.14684348]
[1729787967815,0.03682515,2521.7,2521.6,3.96573]
[1729787968329,4.7779,2522.0,2521.6,3.96573]
[1729787968524,0.03682515,2521.7,2521.6,3.96573]
[1729787968724,5.21343956,2522.0,2521.6,3.96573]
[1729787968725,4.7779,2522.0,2521.6,3.96573]
[1729787968925,0.03682515,2521.7,2521.6,3.96573]
[1729787969124,3.9651,2522.0,2521.6,5.59675348]
[1729787969421,3.9651,2522.0,2521.7,0.7584]
[1729787970448,0.95611035,2522.0,2521.7,3.96557]
[1729787970655,3.96498,2522.1,2521.7,3.96557]
[1729787970810,0.03701824,2521.9,2521.7,3.96557]
[1729787971013,3.96498,2522.1,2521.7,3.96557]
[1729787971251,0.03714244,2522.0,2521.7,3.96557]
[1729787972172,4.00226244,2522.0,2521.6,3.96571]
[1729787972343,4.00232244,2522.0,2521.6,3.96571]
[1729787972845,0.03714244,2522.0,2521.7,3.96556]
[1729787974572,4.00225244,2522.0,2521.6,3.96567]
[1729787976279,0.8229,2521.9,2521.5,6.11054213]
[1729787976472,0.03694466,2521.8,2521.5,6.11054213]
[1729787976677,0.03694466,2521.8,2521.5,6.11048213]
[1729787976837,4.00237466,2521.8,2521.5,3.55]
[1729787977571,3.96558,2521.7,2521.5,0.55]
[1729787977773,4.00237466,2521.8,2521.5,0.55]
[1729787977989,0.03693432,2521.6,2521.5,0.55]
[1729787978169,4.71809,2521.5,2521.3,0.83038213]
[1729787978359,3.96618,2521.4,2521.1,0.83038213]
[1729787978570,8.60382124,2521.4,2521.0,0.83038213]
[1729787978790,8.60384124,2521.4,2520.9,7.20616561]
[1729787978956,4.63764124,2521.4,2521.0,1.63102348]
[1729787979162,0.7522,2521.2,2520.9,0.83038213]
[1729787979503,0.0361304,2521.1,2520.8,4.79729213]
[1729787979715,0.0361304,2521.1,2520.8,1.63102348]
[1729787980071,4.0027904,2521.1,2520.6,2.15426713]
[1729787980309,4.0027904,2521.1,2520.7,1.63102348]
[1729787980520,0.0361304,2521.1,2520.8,1.63102348]
[1729787980677,4.0026604,2521.1,2520.8,1.63102348]
[1729787981210,4.0026604,2521.1,2520.7,6.43029987]
[1729787981400,4.0026604,2521.1,2520.8,1.63102348]
[1729787981597,4.86919519,2521.1,2520.7,5.59810348]
[1729787981801,0.03479855,2521.0,2520.7,5.59810348]
[1729787982125,3.96684,2520.9,2520.6,0.83219639]
[1729787982273,0.03468114,2520.9,2520.6,0.55]
[1729787982475,3.96687,2520.9,2520.6,1.63102348]
[1729787982679,0.0374958,2520.8,2520.6,1.63102348]
[1729787982879,0.0374958,2520.8,2520.6,3.96729]
[1729787983116,0.0374958,2520.8,2520.6,5.59831348]
[1729787983415,0.0374958,2520.8,2520.6,1.63102348]
[1729787983625,0.0374958,2520.8,2520.5,2.18102348]
[1729787984178,0.0374958,2520.8,2520.4,0.8187]
[1729787984409,4.64623073,2520.8,2520.4,4.63102348]
[1729787984575,8.61338073,2520.8,2520.4,3.0]
[1729787984782,3.96725,2520.7,2520.3,4.63102348]
[1729787985006,3.96725,2520.7,2520.4,1.63102348]
[1729787985189,0.03740151,2520.6,2520.3,4.63102348]
[1729787985391,0.03740151,2520.6,2520.3,8.59877348]
[1729787985731,4.60873493,2520.8,2520.3,8.59877348]
[1729787985880,0.03502549,2520.7,2520.3,8.59877348]
[1729787986081,3.96715,2520.7,2520.3,8.59877348]
[1729787986280,0.03486433,2520.6,2520.3,8.59877348]
[1729787986635,0.03486433,2520.6,2520.4,1.63102348]
[1729787987144,4.60866493,2520.8,2520.4,1.63102348]
[1729787987145,0.03474691,2520.5,2520.4,1.63102348]
[1729787987342,4.60865493,2520.8,2520.4,5.59862348]
[1729787987516,0.03748044,2520.7,2520.4,5.59862348]
[1729787987840,4.60865493,2520.8,2520.4,5.59862348]
[1729787987841,0.64166493,2520.8,2520.4,5.59862348]
[1729787988042,0.03744837,2520.6,2520.4,1.63102348]
[1729787988349,0.03479065,2520.5,2520.4,8.59864348]
[1729787988511,3.96708,2520.8,2520.4,5.59864348]
[1729787988708,0.03479065,2520.5,2520.4,5.59864348]
[1729787989046,3.96708,2520.8,2520.4,5.59864348]
[1729787989253,0.03483439,2520.5,2520.4,8.59864348]
[1729787989421,4.74815,2520.9,2520.4,4.63102348]
[1729787989650,4.74814,2520.9,2520.5,5.59848348]
[1729787990021,4.74814,2520.9,2520.5,3.96746]
[1729787991031,4.74814,2520.9,2520.4,4.63102348]
[1729787991230,3.96723,2520.7,2520.2,4.76587]
[1729787991428,4.77802,2520.6,2520.1,3.96799]
[1729787991621,4.77802,2520.6,2520.1,5.59901348]
[1729787991816,9.38629435,2520.6,2520.1,5.59901348]
[1729787992055,5.41889435,2520.6,2520.1,9.56702348]
[1729787992436,9.38630435,2520.6,2520.1,5.59901348]
[1729787992640,3.96756,2520.5,2520.1,5.59901348]
[1729787993032,3.9677,2520.4,2520.0,3.96825]
[1729787993359,3.9677,2520.4,2519.8,7.93691]
[1729787993360,6.40802348,2520.3,2519.8,7.93691]
[1729787993567,4.777,2520.3,2519.8,5.59947348]
[1729787994256,4.777,2520.3,2519.8,5.59956348]
[1729787994856,4.777,2520.3,2519.8,5.59951348]
[1729787996889,3.968,2520.2,2519.8,5.59951348]
[1729787997480,3.968,2520.2,2519.8,3.96849]
[1729787998657,4.77699,2520.3,2519.8,9.56793348]
[1729787998891,4.77699,2520.3,2519.8,3.96842]
[1729787999658,4.77699,2520.3,2519.8,5.59944348]
[1729787999993,4.77699,2520.3,2519.8,3.96842]
[1729788000289,3.96794,2520.2,2519.8,3.96842]
[1729788000797,3.96794,2520.2,2519.9,0.55]
[1729788001471,3.96816,2520.1,2519.8,0.55]
[1729788002282,0.7937,2520.0,2519.8,0.55]
[1729788002549,4.76196,2520.0,2519.7,0.55]
[1729788002952,6.39298348,2520.0,2519.6,0.55]
[1729788003248,4.76196,2520.0,2519.6,0.55]
[1729788003457,3.96849,2519.9,2519.6,0.55]
[1729788003951,7.14542702,2520.0,2519.4,3.0]
[1729788003952,5.59966348,2519.8,2519.4,3.0]
[1729788004153,3.96864,2519.8,2519.4,6.96911]
[1729788004365,3.96875,2519.7,2519.4,3.0]
[1729788004664,0.7937,2520.0,2519.6,1.63102348]
[1729788004953,4.76196,2520.0,2519.6,6.41628348]
[1729788005168,4.76196,2520.0,2519.6,4.78526]
[1729788005456,0.7937,2520.0,2519.7,3.96872]
[1729788005813,0.7937,2520.0,2519.6,0.8165]
[1729788006011,4.76196,2520.0,2519.6,4.78536]
[1729788006462,4.76196,2520.0,2519.6,10.38517348]
[1729788006629,3.96844,2519.9,2519.3,4.51935]
[1729788006823,10.36132348,2520.0,2519.5,4.51902]
[1729788007471,6.39298348,2520.0,2519.5,4.51902]
[1729788007949,4.76196,2520.0,2519.6,3.96881]
[1729788008125,0.7937,2520.0,2519.6,3.96878]
[1729788009164,4.76197,2520.0,2519.6,3.96878]
[1729788011081,3.96776,2520.4,2519.9,6.14935348]
[1729788011292,3.96786,2520.3,2519.9,0.55]
[1729788011787,3.96786,2520.3,2519.9,4.51837]
[1729788012163,5.59864348,2520.4,2520.0,3.96822]
[1729788012360,4.78348,2520.5,2520.0,5.59924348]
[1729788012557,0.2051566,2521.7,2520.0,5.59924348]
[1729788012558,4.76742,2520.7,2520.2,6.42007348]
[1729788012764,5.59841348,2520.6,2520.2,0.8212]
[1729788012994,3.96739,2520.6,2520.2,0.8212]
[1729788013287,3.96748,2520.5,2520.2,0.8212]
[1729788013644,3.96739,2520.6,2520.2,0.8212]
[1729788013852,3.96739,2520.6,2520.2,4.78913]
[1729788014060,0.8002,2520.7,2520.3,4.51775]
[1729788014272,4.76737,2520.7,2520.3,6.14877348]
[1729788014685,4.76737,2520.7,2520.3,2.18102348]
[1729788014986,0.8002,2520.7,2520.3,4.51769]
[1729788015192,4.76739,2520.7,2520.3,4.51769]
[1729788015484,6.39841348,2520.7,2520.3,0.55]
[1729788015692,3.96731,2520.6,2520.3,0.55]
[1729788015882,5.59833348,2520.6,2520.3,0.55]
[1729788016083,0.828,2520.4,2520.1,3.55]
[1729788016258,0.828,2520.4,2520.1,7.51808]
[1729788016846,7.93505,2520.5,2520.1,7.51808]
[1729788017050,3.9675,2520.5,2520.1,7.51808]
[1729788017494,3.9675,2520.5,2520.1,6.96808]
[1729788017795,3.9675,2520.5,2520.1,8.59910348]
[1729788017995,4.60718335,2520.6,2520.1,8.59910348]
[1729788018157,4.73607,2520.7,2520.2,5.59889348]
[1729788018499,4.73607,2520.7,2520.3,0.55]
[1729788018899,4.73604,2520.7,2520.3,4.51777]
[1729788019107,4.73604,2520.7,2520.3,6.14871348]
[1729788019108,3.96724,2520.7,2520.3,6.14871348]
[1729788019399,3.96724,2520.7,2520.4,0.81]
[1729788021088,3.96724,2520.7,2520.3,4.51769]
[1729788021663,7.93451,2520.7,2520.3,0.55]
[1729788021902,3.96724,2520.7,2520.3,0.55]
[1729788023007,5.59826348,2520.7,2520.3,0.55]
[1729788023179,3.9674,2520.6,2520.3,0.55]
[1729788023512,3.9674,2520.6,2520.0,3.0]
[1729788023513,5.59876348,2520.4,2520.0,3.0]
[1729788023679,1.63102348,2520.4,2520.0,3.0]
[1729788023866,3.96778,2520.3,2520.0,3.0]
[1729788024491,1.63102348,2520.3,2519.9,0.8061]
[1729788024695,1.63102348,2520.4,2519.9,0.8061]
[1729788025307,3.96785,2520.3,2519.9,4.77448]
[1729788025680,3.96785,2520.3,2519.9,6.40550348]
[1729788026212,3.96785,2520.3,2519.9,4.77448]
[1729788028070,3.96785,2520.3,2519.9,6.40550348]
[1729788028389,3.96785,2520.3,2519.9,4.77448]
[1729788028771,3.96785,2520.3,2519.9,6.40550348]
[1729788028964,3.96811,2520.1,2519.9,0.8061]
[1729788029266,3.96836,2520.0,2519.7,3.7916]
[1729788031377,4.79421,2520.1,2519.7,3.7916]
[1729788031870,0.07289324,2520.0,2519.7,3.7916]
[1729788032201,0.07289324,2520.0,2519.4,1.3172]
[1729788032202,3.96856,2519.8,2519.4,1.3172]
[1729788032407,3.96856,2519.8,2519.4,5.2863]
[1729788032706,3.96894,2519.6,2519.2,4.76134]
[1729788032906,3.96894,2519.6,2519.3,1.63102348]
[1729788033119,3.96894,2519.6,2519.2,4.76134]
[1729788033120,3.96894,2519.6,2519.2,6.39236348]
[1729788033402,0.07233836,2519.5,2519.3,5.60037348]
[1729788033608,0.07233836,2519.5,2519.4,1.63102348]
[1729788033806,4.76929,2520.0,2519.4,5.60021348]
[1729788034102,5.80612435,2520.0,2519.6,3.96888]
[1729788034302,3.96811,2520.1,2519.7,1.63102348]
[1729788034515,0.7974,2520.2,2519.8,6.39025348]
[1729788034669,4.76535,2520.2,2519.8,6.39025348]
[1729788034874,0.7974,2520.2,2519.9,3.96837]
[1729788035101,3.9678,2520.3,2519.8,10.35873348]
[1729788035382,0.07029847,2520.1,2519.9,4.51839]
[1729788035585,4.75754,2520.4,2520.0,3.96825]
[1729788035783,0.07018268,2520.0,2519.9,4.51839]
[1729788035991,6.38856348,2520.4,2519.9,9.57759935]
[1729788036204,0.07018268,2520.0,2519.9,4.51834]
[1729788036403,4.75754,2520.4,2519.9,4.51834]
[1729788036614,0.07018268,2520.0,2519.9,4.51834]
[1729788036897,4.75754,2520.4,2519.9,4.51834]
[1729788037107,0.07023809,2520.0,2519.9,4.51834]
[1729788037325,3.96764,2520.4,2520.0,3.96822]
[1729788037486,0.07058545,2520.3,2520.0,3.96822]
[1729788037687,0.07058545,2520.3,2520.1,0.55]
[1729788037987,0.07052854,2520.2,2520.1,0.55]
[1729788038209,3.96753,2520.5,2520.1,0.55]
[1729788038530,0.07060917,2520.2,2520.1,0.55]
[1729788039092,0.07060571,2520.2,2520.0,0.55]
[1729788039331,0.07048992,2520.1,2520.0,0.55]
[1729788039622,3.96779,2520.3,2520.0,0.55]
[1729788040421,4.03855571,2520.2,2519.9,0.55]
[1729788040728,3.96816,2520.1,2519.8,0.55]
[1729788041022,3.96816,2520.1,2519.8,3.0]
[1729788041023,4.03864992,2520.1,2519.8,3.0]
[1729788043501,0.07048992,2520.1,2519.8,6.96856]
[1729788043914,0.07048992,2520.1,2519.9,3.96837]
[1729788044095,0.07048992,2520.1,2520.0,0.7608]
[1729788044293,0.7656,2520.4,2520.0,0.7608]
[1729788044493,0.07046568,2520.1,2520.0,5.27897]
[1729788044705,3.96763,2520.4,2520.0,5.27897]
[1729788044910,7.93539,2520.4,2520.0,1.3108]
[1729788045130,3.96788,2520.3,2520.0,1.3108]
[1729788045308,4.03857724,2520.3,2520.0,0.55]
[1729788045705,3.96804,2520.2,2519.8,3.7962]
[1729788046028,0.07047953,2520.1,2519.8,3.0]
[1729788046235,4.03864953,2520.1,2519.8,3.0]
[1729788049713,0.07047953,2520.1,2519.8,6.96856]
[1729788049910,0.07047953,2520.1,2519.9,4.78709]
[1729788050129,4.78126,2520.5,2520.0,4.51825]
[1729788050297,3.96765,2520.4,2520.0,4.51822]
[1729788050803,3.96765,2520.4,2520.0,4.51816]
[1729788051209,4.78116,2520.5,2520.1,3.96808]
[1729788052518,4.7883,2520.8,2520.3,0.754]
[1729788052723,3.96732,2520.6,2520.3,0.754]
[1729788053420,0.06930312,2520.5,2520.3,0.754]
[1729788056935,0.06930312,2520.5,2520.3,4.72176]
[1729788057160,4.29897231,2520.7,2520.3,4.72176]
[1729788057865,0.07111678,2520.6,2520.3,4.72176]
[1729788058365,1.6334149,2520.5,2520.3,4.72176]
[1729788058707,1.6334149,2520.5,2520.4,3.96756]
[1729788058708,0.07140249,2520.5,2520.4,3.96756]
[1729788058961,1.70481739,2520.5,2520.4,3.96756]
[1729788060326,1.70481739,2520.5,2520.2,3.9679]
[1729788060327,1.70481739,2520.5,2520.2,3.9678]
[1729788060527,1.6334149,2520.3,2520.0,4.51812]
[1729788060740,1.6334149,2520.3,2520.1,3.96801]
[1729788060971,0.06834572,2520.2,2520.1,4.51801]
[1729788061164,1.70176062,2520.2,2520.0,3.96822]
[1729788061339,1.70192651,2520.2,2520.0,3.96822]
[1729788061544,0.06851161,2520.2,2520.0,3.96822]
[1729788061744,1.6334149,2520.1,2519.8,4.80062639]
[1729788061942,1.6334149,2519.9,2519.7,3.96864]
[1729788062326,1.6334149,2519.8,2519.6,3.96876]
[1729788062570,1.6334149,2519.9,2519.6,3.96876]
[1729788062739,0.06736625,2519.7,2519.6,3.96876]
[1729788063258,1.70099686,2519.7,2519.4,3.96912]
[1729788063457,1.70099686,2519.7,2519.3,4.80140639]
[1729788063458,1.6334149,2519.7,2519.3,0.83219639]
[1729788063768,0.06739339,2519.6,2519.3,3.96927]
[1729788064069,0.06739339,2519.6,2519.2,5.61599639]
[1729788064449,0.06739339,2519.6,2519.2,4.7838]
[1729788064768,0.06739339,2519.6,2519.3,3.96932]
[1729788065138,4.03629339,2519.6,2519.2,5.61599639]
[1729788065469,1.00506458,2519.6,2519.2,4.78377]
[1729788066129,0.93767119,2519.6,2519.2,4.78377]
[1729788066657,0.06727755,2519.5,2519.2,4.78377]
[1729788067390,5.34041849,2519.7,2519.2,4.78377]
[1729788067681,0.06716169,2519.4,2519.2,4.78377]
[1729788067981,3.9689,2519.6,2519.2,3.96947]
[1729788068347,3.9689,2519.6,2519.2,4.51947]
[1729788068550,5.34041849,2519.7,2519.2,4.51947]
[1729788068853,0.06722524,2519.6,2519.3,3.96935]
[1729788069060,0.06722524,2519.6,2519.4,3.96917]
[1729788069255,0.06722524,2519.6,2519.5,4.77064]
[1729788069653,0.8007,2519.9,2519.5,4.77064]
[1729788070033,0.06717519,2519.6,2519.5,4.77064]
[1729788070278,3.96825,2520.0,2519.5,8.73959]
[1729788070482,4.365089,2520.0,2519.5,4.77055]
[1729788070781,0.06740491,2519.9,2519.5,4.77055]
[1729788071343,0.06740491,2519.9,2519.6,3.9688]
[1729788071539,3.96827,2520.0,2519.5,4.77055]
[1729788071743,4.76887,2520.1,2519.6,3.96888]
[1729788071983,0.06740491,2519.9,2519.7,3.9687]
[1729788072183,0.06752072,2520.0,2519.7,3.9687]
[1729788072569,4.76887,2520.1,2519.6,4.51885]
[1729788072888,0.06740491,2519.9,2519.6,0.55]
[1729788073192,0.06740491,2519.9,2519.3,0.848882]
[1729788073193,3.96856,2519.8,2519.3,3.96927]
[1729788073360,4.03584909,2519.8,2519.3,3.96927]
[1729788075252,0.06728909,2519.8,2519.7,4.3591]
[1729788075451,4.73828,2520.6,2519.7,5.12702245]
[1729788075649,0.06133616,2520.5,2519.7,4.3591]
[1729788075880,3.96749,2520.5,2519.7,6.22256808]
[1729788076170,3.96749,2520.5,2519.9,0.55]
[1729788076377,4.02886039,2520.4,2519.9,0.55]
[1729788076687,0.79963504,2520.3,2519.9,0.55]
[1729788077182,0.06098884,2520.2,2519.9,0.55]
[1729788077349,3.96749,2520.5,2519.9,0.55]
[1729788077594,4.02886039,2520.4,2519.8,1.58119018]
[1729788077788,4.73726,2520.3,2519.8,0.55]
[1729788078111,0.54083688,2520.2,2519.8,0.55]
[1729788078422,0.54083688,2520.2,2519.5,4.63269639]
[1729788078423,0.54083688,2520.2,2519.7,0.55]
[1729788079117,0.54083688,2520.2,2519.8,3.96856]
[1729788079518,0.47984804,2520.2,2519.9,3.96834]
[1729788079729,0.06090223,2520.1,2519.9,3.96834]
[1729788080382,0.06090223,2520.1,2519.9,3.96834]
[1729788080584,4.73726,2520.3,2519.8,3.96856]
[1729788080585,3.968,2520.2,2519.8,3.96856]
[1729788080786,0.06090223,2520.1,2519.7,3.96865]
[1729788081215,1.243126,2520.3,2519.7,3.96865]
[1729788081422,3.96796,2520.2,2519.8,3.96855]
[1729788081580,4.02897802,2520.2,2519.8,3.96855]
[1729788081786,0.06101802,2520.2,2519.6,0.55]
[1729788082223,0.06101802,2520.2,2519.6,1.38219639]
[1729788082403,0.06101802,2520.2,2519.6,5.4135193]
[1729788082720,0.06101802,2520.2,2519.7,1.03129352]
[1729788082928,0.06101802,2520.2,2519.7,3.0]
[1729788083426,0.06101802,2520.2,2519.6,5.41348991]
[1729788084192,0.06101802,2520.2,2519.6,4.38219639]
[1729788084425,0.06101802,2520.2,2519.7,3.0]
[1729788084633,0.06101802,2520.2,2519.6,5.41348991]
[1729788085313,0.93761082,2520.2,2519.6,5.41348991]
[1729788085506,0.93761082,2520.2,2519.6,3.55]
[1729788086027,0.93761082,2520.2,2519.6,4.58131158]
[1729788086231,0.93761082,2520.2,2519.8,3.96841]
[1729788086525,0.93761082,2520.2,2519.9,3.9684]
[1729788087735,3.96817,2520.1,2519.7,3.9687]
[1729788088035,0.06078643,2520.0,2519.7,3.9687]
[1729788088855,0.06078643,2520.0,2519.7,7.93735]
[1729788089021,0.06078643,2520.0,2519.7,3.96865]
[1729788089396,0.06078643,2520.0,2519.7,7.9373]
[1729788089635,0.06078643,2520.0,2519.8,3.96856]
[1729788090221,0.06078643,2520.0,2519.7,3.96865]
[1729788090222,0.06078643,2520.0,2519.7,3.96869]
[1729788090536,0.06078643,2520.0,2519.7,7.9373]
[1729788090738,0.06078643,2520.0,2519.7,3.96861]
[1729788091024,0.06078643,2520.0,2519.7,7.93722]
[1729788091732,0.06078643,2520.0,2519.7,3.96861]
[1729788092338,0.06078643,2520.0,2519.7,7.93725]
[1729788092933,0.06078643,2520.0,2519.6,0.55]
[1729788093101,0.91722518,2520.0,2519.7,3.9687]
[1729788094437,0.06078643,2520.0,2519.7,3.9687]
[1729788094905,0.06078643,2520.0,2519.7,3.96861]
[1729788095298,3.96797,2520.2,2519.7,3.96861]
[1729788095498,0.06079566,2519.9,2519.8,3.96856]
[1729788095825,0.06089984,2519.9,2519.8,3.96856]
[1729788096001,7.93606,2520.2,2519.7,3.96871]
[1729788096201,4.89984745,2520.1,2519.7,3.96871]
[1729788096652,6.53361948,2520.1,2519.7,3.96871]
[1729788098562,6.53361948,2520.1,2519.8,3.96855]
[1729788098563,0.93167745,2520.1,2519.8,3.96855]
[1729788098865,0.06113145,2520.1,2520.0,3.96825]
[1729788099160,2.40317203,2520.3,2520.0,3.96825]
[1729788099359,0.06129017,2520.1,2520.0,3.96825]
[1729788099563,2.40317203,2520.3,2520.0,3.96825]
[1729788099763,2.40317203,2520.3,2519.9,4.72117]
[1729788099764,1.63377203,2520.2,2519.9,4.72117]
[1729788100265,1.63377203,2520.2,2519.9,4.72114]
[1729788100430,1.63377203,2520.2,2519.9,8.68948]
[1729788100767,1.63377203,2520.2,2519.9,4.72114]
[1729788101459,1.63377203,2520.2,2519.9,3.96831]
[1729788101663,4.73718,2520.3,2519.9,3.96831]
[1729788101664,1.63377203,2520.1,2519.9,3.96831]
[1729788101871,1.63377203,2520.0,2519.6,0.55]
[1729788102054,5.60251203,2519.7,2519.3,9.54626639]
[1729788102255,4.74933,2519.9,2519.3,9.54626639]
[1729788102256,1.63377203,2519.8,2519.4,5.00072458]
[1729788102567,1.63377203,2519.8,2519.4,3.96908]
[1729788102773,0.06088945,2519.7,2519.4,3.96908]
[1729788102973,0.06088945,2519.7,2519.3,4.74473]
[1729788103156,5.60234203,2519.8,2519.4,3.96919]
[1729788103328,0.06077362,2519.6,2519.4,3.96919]
[1729788103656,0.06065778,2519.5,2519.4,3.96919]
[1729788103831,5.60234203,2519.8,2519.4,3.96919]
[1729788104033,0.06088945,2519.7,2519.4,3.96919]
[1729788104233,5.60234203,2519.8,2519.4,3.96919]
[1729788104448,0.06088945,2519.7,2519.4,3.96919]
[1729788104648,5.60234203,2519.8,2519.4,3.96919]
[1729788104967,0.06088945,2519.7,2519.3,4.74483]
[1729788105170,0.06088945,2519.7,2519.3,8.71411]
[1729788105464,0.06077362,2519.6,2519.4,3.96918]
[1729788105761,5.60234203,2519.8,2519.4,3.96918]
[1729788105949,0.06065778,2519.5,2519.4,3.96918]
[1729788106133,5.60234203,2519.8,2519.4,3.96918]
[1729788106461,6.63750223,2519.8,2519.4,3.96918]
[1729788106630,0.06088945,2519.7,2519.4,3.96918]
[1729788106831,5.60234203,2519.8,2519.4,3.96918]
[1729788107032,0.06088945,2519.7,2519.4,3.96918]
[1729788107228,5.60234203,2519.8,2519.4,3.96918]
[1729788107549,0.06088945,2519.7,2519.4,3.96918]
[1729788108053,5.60234203,2519.8,2519.4,3.96918]
[1729788108256,6.02924176,2519.8,2519.4,3.96918]
[1729788108460,4.74933,2519.9,2519.4,3.96918]
[1729788109072,0.8066,2520.4,2519.5,1.63377203]
[1729788109276,1.63377203,2520.1,2519.7,0.8309]
[1729788109987,0.0610181,2520.0,2519.7,0.8309]
[1729788110678,0.0610181,2520.0,2519.7,4.79955]
[1729788110877,0.0610181,2520.0,2519.7,0.8309]
[1729788110878,1.69479013,2520.0,2519.7,0.8309]
[1729788111389,1.69479013,2520.0,2519.7,4.79962]
[1729788113990,0.0610181,2520.0,2519.7,0.8309]
[1729788114165,1.69479013,2520.0,2519.7,0.8309]
[1729788115240,1.63377203,2519.9,2519.6,0.55]
[1729788115350,5.60220203,2519.9,2519.6,0.55]
[1729788115551,0.06081774,2519.8,2519.6,0.55]
[1729788116174,0.06081774,2519.8,2519.5,4.75937]
[1729788117167,5.66326977,2519.8,2519.3,1.61437188]
[1729788117504,3.9689,2519.6,2519.3,3.7823]